bitfinex/quotes_BTCUSD_20250512
["timestamp","ask_amount","ask_price","bid_price","bid_amount"]
[1747075962963,0.39915628,101150.0,101140.0,0.56840645]
[1747075963179,0.38926998,101150.0,101140.0,0.56840645]
[1747075963417,0.18165764,101150.0,101140.0,0.57829305]
[1747075963637,0.17177153,101150.0,101140.0,0.57829305]
[1747075964075,0.18165764,101150.0,101140.0,0.57829305]
[1747075964310,0.106,101150.0,101140.0,1.18085402]
[1747075964544,0.04806,101170.0,101160.0,0.2273614]
[1747075964785,0.12406,101170.0,101160.0,0.73406807]
[1747075965012,0.03394357,101170.0,101160.0,0.73406807]
[1747075965226,0.02406,101170.0,101160.0,0.73406807]
[1747075965447,6e-05,101170.0,101160.0,0.82992237]
[1747075965664,0.00494347,101170.0,101160.0,0.3232157]
[1747075965905,0.00494347,101170.0,101160.0,0.32336317]
[1747075966124,0.01482713,101170.0,101160.0,0.22750887]
[1747075966346,0.07694885,101180.0,101170.0,0.56733873]
[1747075966585,0.07694885,101180.0,101170.0,0.54757141]
[1747075966586,0.37461695,101180.0,101170.0,0.54757141]
[1747075966808,0.15718269,101180.0,101170.0,0.57722328]
[1747075967029,0.1473,101180.0,101170.0,1.08392995]
[1747075967257,0.15718269,101180.0,101170.0,0.57722328]
[1747075967492,0.37461627,101180.0,101170.0,0.56733962]
[1747075967730,0.38449954,101180.0,101170.0,0.56733962]
[1747075967951,0.37461617,101180.0,101170.0,0.57722348]
[1747075968179,0.37461617,101180.0,101170.0,0.57722328]
[1747075968459,0.37461617,101180.0,101170.0,1.17978425]
[1747075968460,0.1,101180.0,101170.0,1.17978425]
[1747075969168,0.101,101180.0,101170.0,1.17978425]
[1747075969398,0.101,101180.0,101170.0,1.14783051]
[1747075970107,0.001,101180.0,101170.0,2.11467103]
[1747075970332,0.001,101180.0,101170.0,2.24773577]
[1747075970555,0.001,101180.0,101170.0,1.41589477]
[1747075970786,0.001,101180.0,101170.0,1.05122398]
[1747075971004,0.001,101180.0,101170.0,1.1558273]
[1747075971224,0.001,101180.0,101170.0,0.92884869]
[1747075971889,0.01976342,101190.0,101180.0,0.22731646]
[1747075972119,0.05888161,101190.0,101180.0,0.22731646]
[1747075972351,0.06876332,101190.0,101180.0,0.22731646]
[1747075972802,0.06876332,101190.0,101180.0,0.56731646]
[1747075973027,0.2664113,101190.0,101180.0,0.54755079]
[1747075973256,0.07964513,101190.0,101180.0,0.57431646]
[1747075973487,0.0253,101190.0,101180.0,1.14492369]
[1747075973701,0.001,101190.0,101180.0,1.26624575]
[1747075973956,0.01088152,101190.0,101180.0,1.29140963]
[1747075974170,0.01088161,101190.0,101180.0,1.26624575]
[1747075974382,0.001,101190.0,101180.0,1.19555533]
[1747075974602,0.01088152,101190.0,101180.0,1.19555533]
[1747075974838,0.01088152,101190.0,101180.0,1.17039145]
[1747075975059,0.02076313,101190.0,101180.0,0.69563852]
[1747075975280,0.001,101190.0,101180.0,0.69563852]
[1747075975508,0.01088152,101190.0,101180.0,0.7208024]
[1747075975953,0.02076323,101190.0,101180.0,0.67017076]
[1747075976211,0.07734504,101190.0,101180.0,0.67017076]
[1747075976913,0.06746323,101190.0,101180.0,0.67017076]
[1747075977151,0.03438152,101190.0,101180.0,0.67017076]
[1747075977374,0.03438152,101190.0,101180.0,1.24077799]
[1747075977625,0.001,101190.0,101180.0,1.24077799]
[1747075977879,0.001,101190.0,101180.0,1.14492369]
[1747075978413,0.001,101190.0,101180.0,1.8080663]
[1747075978672,0.001,101190.0,101180.0,1.78259854]
[1747075979121,0.001,101190.0,101180.0,1.76303954]
[1747075979348,0.001,101190.0,101180.0,1.85889384]
[1747075980766,0.02037359,101200.0,101190.0,0.58183484]
[1747075980994,0.02037359,101200.0,101190.0,2.30507907]
[1747075981210,0.02037359,101200.0,101190.0,2.33165984]
[1747075981478,0.02938563,101200.0,101190.0,2.33165984]
[1747075981710,0.02938563,101200.0,101190.0,2.40093337]
[1747075982435,0.03038563,101200.0,101190.0,2.98621686]
[1747075982886,0.03038563,101200.0,101190.0,2.51146393]
[1747075983336,0.02137359,101200.0,101190.0,1.70065293]
[1747075983601,0.02137359,101200.0,101190.0,1.51895879]
[1747075984335,0.0153667,101220.0,101210.0,0.22724908]
[1747075984558,0.0153667,101220.0,101210.0,2.13773148]
[1747075984785,0.0153667,101220.0,101210.0,2.03088204]
[1747075985285,0.0153667,101220.0,101210.0,2.05846281]
[1747075985286,0.00903857,101220.0,101210.0,2.05846281]
[1747075985529,0.00903857,101220.0,101210.0,2.15028404]
[1747075985771,0.00953264,101220.0,101210.0,2.16167789]
[1747075985976,0.35191903,101270.0,101250.0,0.21726525]
[1747075986204,0.38265697,101260.0,101250.0,0.5574134]
[1747075986420,0.38265648,101260.0,101250.0,0.54753725]
[1747075986641,0.39253195,101260.0,101250.0,0.34014747]
[1747075986867,0.37278209,101260.0,101250.0,0.34014747]
[1747075987323,0.17527006,101260.0,101250.0,0.55743072]
[1747075987544,0.17526947,101260.0,101250.0,0.56830658]
[1747075987780,0.38265677,101260.0,101250.0,0.34114747]
[1747075987998,0.38265648,101260.0,101250.0,0.55843092]
[1747075988228,0.39253204,101260.0,101250.0,0.34114747]
[1747075988440,0.37378218,101260.0,101250.0,0.34114747]
[1747075988657,0.37678218,101260.0,101250.0,0.34114747]
[1747075989379,0.1496,101260.0,101250.0,1.13891401]
[1747075989591,0.38652248,101260.0,101250.0,0.34114747]
[1747075989809,0.36677281,101260.0,101250.0,0.00114747]
[1747075990511,0.36677281,101260.0,101250.0,0.20855467]
[1747075990735,0.36677281,101260.0,101250.0,0.21843072]
[1747075990921,0.3766477,101260.0,101250.0,0.24248114]
[1747075991176,0.16926088,101260.0,101250.0,0.21843072]
[1747075991403,0.14951063,101260.0,101250.0,1.13891381]
[1747075991852,0.14951063,101260.0,101250.0,0.66416088]
[1747075992053,0.16926049,101260.0,101250.0,0.56830658]
[1747075992321,0.35689676,101260.0,101250.0,0.34114747]
[1747075992547,0.16926039,101260.0,101250.0,0.56830678]
[1747075992764,0.15938541,101260.0,101250.0,0.56830678]
[1747075992981,0.36677184,101260.0,101250.0,0.56830678]
[1747075993191,0.14951063,101260.0,101250.0,1.13891401]
[1747075993633,0.12681063,101260.0,101250.0,1.13891401]
[1747075993865,0.104,101260.0,101250.0,1.24930916]
[1747075994146,0.0451,101290.0,101280.0,0.56709202]
[1747075994365,0.0225439,101300.0,101290.0,0.2270696]
[1747075994580,0.5307839,101300.0,101290.0,0.79767683]
[1747075994834,0.4307839,101300.0,101290.0,0.79767683]
[1747075995068,0.4303039,101300.0,101290.0,0.79767683]
[1747075995286,0.4083039,101300.0,101290.0,0.79767683]
[1747075995544,0.4080639,101300.0,101290.0,0.89353113]
[1747075995759,0.4080639,101300.0,101290.0,0.8936786]
[1747075995985,0.0005439,101300.0,101290.0,0.8936786]
[1747075996197,0.0005439,101300.0,101290.0,2.72627101]
[1747075996423,0.0015439,101300.0,101290.0,2.72627101]
[1747075996914,6e-05,101310.0,101300.0,0.56704718]
[1747075997143,0.49748147,101350.0,101340.0,0.56695757]
[1747075997144,0.44781203,101350.0,101340.0,0.56695757]
[1747075997370,0.25098,101350.0,101340.0,0.56695757]
[1747075997587,0.35098,101350.0,101340.0,0.56695757]
[1747075998005,0.36084601,101350.0,101340.0,0.56695757]
[1747075998214,0.37071232,101350.0,101340.0,0.56695757]
[1747075998427,0.39008093,101350.0,101340.0,0.64536273]
[1747075998642,0.39008093,101350.0,101340.0,0.56695757]
[1747075998872,0.58741748,101350.0,101340.0,0.34]
[1747075999100,0.390082,101350.0,101340.0,0.55709048]
[1747075999370,0.57755117,101350.0,101340.0,0.55709048]
[1747075999610,0.57755117,101350.0,101340.0,0.55709057]
[1747075999611,0.52755117,101350.0,101340.0,0.55709057]
[1747075999859,0.32234832,101350.0,101340.0,0.57682504]
[1747076000108,0.35194675,101350.0,101340.0,0.57682504]
[1747076000361,0.36481316,101350.0,101340.0,0.57682504]
[1747076000591,0.13710211,101350.0,101340.0,1.12998305]
[1747076000849,0.11450211,101350.0,101340.0,1.12998305]
[1747076001297,0.11450211,101350.0,101340.0,0.65523012]
[1747076001298,0.01450211,101350.0,101340.0,0.65523012]
[1747076001545,0.01450211,101350.0,101340.0,0.57682504]
[1747076001546,0.08003424,101350.0,101340.0,0.57682504]
[1747076001757,0.06030211,101350.0,101340.0,0.57682504]
[1747076002424,0.06816812,101350.0,101340.0,0.57682504]
[1747076002639,0.07803443,101350.0,101340.0,0.57682504]
[1747076002880,0.07603433,101350.0,101340.0,0.57682504]
[1747076003100,0.08790064,101350.0,101340.0,0.57682504]
[1747076003336,0.28523748,101350.0,101340.0,0.34]
[1747076003565,0.28523796,101350.0,101340.0,0.54722271]
[1747076003786,0.05416786,101330.0,101320.0,0.22696915]
[1747076004010,0.68166812,101330.0,101320.0,0.21710031]
[1747076004285,0.0453,101320.0,101310.0,0.22702477]
[1747076004508,0.0749073,101320.0,101310.0,0.22702477]
[1747076004729,0.08477672,101320.0,101310.0,0.22702477]
[1747076004957,0.27230266,101320.0,101310.0,0.54728446]
[1747076005181,0.03267108,101300.0,101290.0,0.24682486]
[1747076005396,0.0228,101300.0,101290.0,0.36242395]
[1747076005633,0.0228,101300.0,101290.0,0.67279595]
[1747076005864,0.0228,101300.0,101290.0,0.33279595]
[1747076006087,0.0228,101300.0,101290.0,0.67279595]
[1747076006312,0.0228,101300.0,101290.0,0.77267299]
[1747076006546,0.0228,101300.0,101290.0,0.77282046]
[1747076006803,0.0228,101300.0,101290.0,0.77482046]
[1747076007020,0.07381304,101300.0,101290.0,0.67896616]
[1747076007246,0.0442,101300.0,101290.0,0.58897633]
[1747076007505,0.05407088,101300.0,101290.0,0.59097633]
[1747076007731,0.0442,101300.0,101290.0,0.59097633]
[1747076007966,0.07381353,101300.0,101290.0,0.58110447]
[1747076008224,0.07381353,101300.0,101290.0,0.55147286]
[1747076008424,0.27124738,101300.0,101290.0,0.55147286]
[1747076008716,0.07381392,101300.0,101290.0,0.57121745]
[1747076008965,0.07381392,101300.0,101290.0,0.58108951]
[1747076009471,0.6679161,101300.0,101290.0,0.54947296]
[1747076009707,0.6679161,101300.0,101290.0,0.56721755]
[1747076009708,0.66644806,101300.0,101290.0,0.56721755]
[1747076009948,1.23589714,101300.0,101290.0,0.34014747]
[1747076010192,1.14951089,101300.0,101290.0,0.00014747]
[1747076010464,1.15051089,101300.0,101290.0,0.00014747]
[1747076010732,1.16038148,101300.0,101290.0,0.21734521]
[1747076010954,1.1693957,101300.0,101290.0,0.2173453]
[1747076011193,1.1693957,101300.0,101290.0,0.22721755]
[1747076011194,1.06218964,101300.0,101290.0,0.22721755]
[1747076011645,1.04330483,101300.0,101290.0,0.00014747]
[1747076011875,1.04330483,101300.0,101290.0,0.20747296]
[1747076012338,1.04330483,101300.0,101290.0,0.2173455]
[1747076012565,1.04330483,101300.0,101290.0,0.22721794]
[1747076012821,1.04330483,101300.0,101290.0,0.00014747]
[1747076013062,1.61307562,101300.0,101290.0,0.00014747]
[1747076013296,0.2627618,101260.0,101250.0,0.001]
[1747076013522,0.06512523,101260.0,101250.0,0.22830618]
[1747076013777,0.27263658,101260.0,101250.0,0.22830618]
[1747076013995,0.0455,101260.0,101250.0,0.27285769]
[1747076014260,0.05537488,101260.0,101250.0,0.27285769]
[1747076014505,0.06525005,101260.0,101250.0,0.27285769]
[1747076014738,0.28251243,101260.0,101250.0,0.20855407]
[1747076014969,0.27263755,101260.0,101250.0,0.55843032]
[1747076015255,0.0226,101260.0,101250.0,0.58805974]
[1747076015523,0.87295283,101280.0,101270.0,0.56711445]
[1747076015801,0.89269899,101280.0,101270.0,0.56711454]
[1747076016038,0.43652,101280.0,101270.0,0.57698845]
[1747076016253,0.44639293,101280.0,101270.0,0.57698845]
[1747076016468,0.43652,101280.0,101270.0,0.57698845]
[1747076016684,0.42299283,101280.0,101270.0,0.57698845]
[1747076016904,0.38756,101290.0,101280.0,0.55721811]
[1747076017128,0.50730381,101290.0,101280.0,0.55721811]
[1747076017342,0.50730362,101290.0,101280.0,0.55721811]
[1747076017561,0.41717577,101290.0,101280.0,0.55721811]
[1747076017780,0.66032862,101290.0,101280.0,0.34]
[1747076018020,0.66032999,101290.0,101280.0,0.5572189]
[1747076018249,0.46287636,101290.0,101280.0,0.56709183]
[1747076018457,0.00987186,101290.0,101280.0,0.56709183]
[1747076018679,0.02374382,101290.0,101280.0,0.56709183]
[1747076018896,0.03161597,101290.0,101280.0,0.56709183]
[1747076019150,0.02961597,101290.0,101280.0,0.56709183]
[1747076019356,0.04048832,101290.0,101280.0,0.56709183]
[1747076019575,0.02074382,101290.0,101280.0,0.56709183]
[1747076019786,0.001,101290.0,101280.0,0.56709183]
[1747076020013,0.002,101290.0,101280.0,0.66294613]
[1747076020454,0.01187186,101290.0,101280.0,0.56709183]
[1747076020706,0.002,101290.0,101280.0,0.56709183]
[1747076020929,0.01187186,101290.0,101280.0,0.56709183]
[1747076021148,0.25622471,101290.0,101280.0,0.34]
[1747076021368,0.2759695,101290.0,101280.0,0.57696554]
[1747076021586,0.2759695,101290.0,101280.0,0.56709251]
[1747076021836,0.02091867,101290.0,101280.0,0.58683847]
[1747076022051,0.02091867,101290.0,101280.0,0.6642843]
[1747076022279,0.01104671,101290.0,101280.0,0.58683847]
[1747076022980,0.002,101290.0,101280.0,0.58683847]
[1747076023210,0.01187196,101290.0,101280.0,0.58683847]
[1747076023456,0.01187186,101290.0,101280.0,0.58683847]
[1747076023727,0.20932471,101290.0,101280.0,0.34]
[1747076023948,0.00987381,101270.0,101260.0,0.23699468]
[1747076024206,0.01974781,101270.0,101260.0,0.58686986]
[1747076024460,0.03317371,101270.0,101260.0,0.55724405]
[1747076024672,0.05341957,101280.0,101270.0,0.22711445]
[1747076024885,0.06684615,101280.0,101270.0,0.22711445]
[1747076025105,0.06684615,101280.0,101270.0,0.21724054]
[1747076025333,0.35027979,101290.0,101280.0,0.34]
[1747076025562,0.29310457,101290.0,101280.0,0.53747235]
[1747076025837,0.05616332,101290.0,101280.0,0.56709193]
[1747076026091,0.00906332,101290.0,101280.0,0.57696486]
[1747076026585,0.23794146,101290.0,101280.0,0.54734577]
[1747076026864,0.26529706,101290.0,101280.0,0.55721909]
[1747076027206,0.26529706,101290.0,101280.0,0.57696534]
[1747076027368,0.01087176,101290.0,101280.0,0.58683837]
[1747076027622,0.01087176,101290.0,101280.0,0.56709241]
[1747076027623,0.27376901,101290.0,101280.0,0.56709241]
[1747076027868,0.26389784,101290.0,101280.0,0.34]
[1747076028113,0.26389784,101290.0,101270.0,0.55824074]
[1747076028114,0.2636187,101280.0,101270.0,0.55824074]
[1747076028361,0.06614577,101280.0,101270.0,0.57798885]
[1747076028579,0.27349231,101280.0,101270.0,0.19849185]
[1747076028794,0.05627274,101280.0,101270.0,0.22811445]
[1747076029025,0.43025063,101290.0,101280.0,0.22709202]
[1747076029254,0.38630642,101290.0,101280.0,1.04184495]
[1747076029482,0.00906642,101290.0,101280.0,1.04184495]
[1747076029729,0.41151098,101300.0,101290.0,0.2270696]
[1747076029957,0.38931098,101300.0,101290.0,0.2270696]
[1747076030171,0.0456,101310.0,101300.0,0.22704718]
[1747076030384,0.43202903,101320.0,101310.0,0.55715379]
[1747076030598,0.44189807,101320.0,101310.0,0.55715379]
[1747076030821,0.86200747,101340.0,101330.0,0.21711229]
[1747076031062,1.55555004,101340.0,101330.0,0.57684889]
[1747076031287,1.55555004,101340.0,101330.0,0.5571122]
[1747076031288,0.37355062,101340.0,101330.0,0.5571122]
[1747076031519,0.17540191,101340.0,101330.0,0.57684861]
[1747076031751,0.18526919,101340.0,101330.0,0.57684861]
[1747076031985,0.17540191,101340.0,101330.0,0.57684861]
[1747076032217,0.17540191,101340.0,101330.0,1.82782814]
[1747076032218,0.01156784,101340.0,101330.0,1.82782814]
[1747076032486,0.01156784,101340.0,101330.0,1.85208836]
[1747076032712,0.01156784,101340.0,101330.0,1.95961892]
[1747076032943,0.06259318,101370.0,101360.0,1.04166571]
[1747076033135,0.01803848,101370.0,101360.0,0.71724685]
[1747076033398,0.01803848,101370.0,101360.0,1.57710278]
[1747076033698,0.09743848,101380.0,101370.0,0.22689041]
[1747076033918,0.1314523,101390.0,101380.0,0.56686801]
[1747076034150,0.43857331,101390.0,101380.0,0.56686801]
[1747076034394,0.22158969,101390.0,101380.0,0.56686801]
[1747076034609,0.22158959,101390.0,101380.0,0.56686801]
[1747076034897,0.42871109,101390.0,101380.0,0.55700482]
[1747076035017,0.50484037,101390.0,101380.0,0.34]
[1747076035255,0.60269467,101390.0,101380.0,0.34]
[1747076035502,0.50684037,101390.0,101380.0,0.53727756]
[1747076035751,0.49697766,101390.0,101380.0,0.34]
[1747076036001,0.19400245,101390.0,101380.0,0.53727756]
[1747076036296,0.21772718,101390.0,101380.0,0.56686801]
[1747076036535,0.22758989,101390.0,101380.0,0.56686801]
[1747076036772,0.05070245,101390.0,101380.0,0.64525733]
[1747076037027,0.06056457,101390.0,101380.0,0.56686801]
[1747076037265,0.05070245,101390.0,101380.0,0.56686801]
[1747076037514,0.04870245,101390.0,101380.0,0.56686801]
[1747076037739,0.04870245,101390.0,101380.0,0.56886801]
[1747076038197,0.04870245,101390.0,101380.0,0.66472231]
[1747076038461,0.004,101390.0,101380.0,0.56886801]
[1747076038703,0.07517526,101400.0,101390.0,0.56684564]
[1747076038956,0.07517546,101400.0,101390.0,0.56684564]
[1747076039188,0.085037,101400.0,101390.0,0.56684564]
[1747076039416,0.0850368,101400.0,101390.0,0.56684564]
[1747076039667,0.09489834,101400.0,101390.0,0.56684564]
[1747076039905,0.0860368,101400.0,101390.0,0.56684564]
[1747076040413,0.07617546,101400.0,101390.0,0.56684564]
[1747076040660,0.0860369,101400.0,101390.0,0.56684564]
[1747076040907,0.02171421,101400.0,101390.0,1.07896519]
[1747076041140,0.02171421,101400.0,101390.0,1.17481949]
[1747076042124,0.02171421,101400.0,101390.0,0.70006656]
[1747076042568,0.02171421,101400.0,101390.0,0.66269994]
[1747076043231,0.02171421,101400.0,101390.0,1.13745287]
[1747076043457,0.02171421,101400.0,101390.0,2.42306726]
[1747076043690,0.0153667,101420.0,101410.0,0.2268009]
[1747076043965,0.01542441,101420.0,101410.0,2.00989252]
[1747076044193,0.01542441,101420.0,101410.0,1.87702652]
[1747076044414,0.01542441,101420.0,101410.0,1.95471555]
[1747076044630,0.01542441,101420.0,101410.0,1.5631964]
[1747076045341,0.01542441,101420.0,101410.0,1.5641964]
[1747076045557,0.01542441,101420.0,101410.0,1.5631964]
[1747076045771,0.01542441,101420.0,101410.0,1.5651964]
[1747076046244,0.01542441,101420.0,101410.0,1.591702]
[1747076046245,0.00698442,101420.0,101410.0,1.591702]
[1747076046470,0.40966,101470.0,101460.0,0.55683372]
[1747076046726,0.04799015,101470.0,101460.0,1.09909673]
[1747076046954,0.00049015,101470.0,101460.0,0.7201981]
[1747076047200,0.0094718,101470.0,101460.0,1.76726863]
[1747076047439,0.0094718,101470.0,101460.0,1.74076303]
[1747076047925,0.0094718,101470.0,101460.0,1.76726863]
[1747076048156,0.0094718,101470.0,101460.0,1.78180948]
[1747076048380,0.00049015,101470.0,101460.0,1.78180948]
[1747076048614,0.00049015,101470.0,101460.0,1.78480948]
[1747076048867,0.00049015,101470.0,101460.0,1.39288688]
[1747076049095,0.00049015,101470.0,101460.0,0.91813395]
[1747076049320,0.00049015,101470.0,101460.0,1.39188688]
[1747076049764,0.00049015,101470.0,101460.0,1.38988688]
[1747076049985,0.00049015,101470.0,101460.0,1.37534603]
[1747076050261,0.00049015,101470.0,101460.0,1.41639248]
[1747076050499,0.01745438,101490.0,101480.0,1.04139739]
[1747076050723,0.01760133,101490.0,101480.0,3.23326865]
[1747076050964,0.02655182,101490.0,101480.0,3.23326865]
[1747076051201,0.02655182,101490.0,101480.0,2.73599465]
[1747076051429,0.04534073,101490.0,101480.0,0.65264529]
[1747076051681,0.03548813,101490.0,101480.0,0.56764446]
[1747076051900,0.03548813,101490.0,101480.0,0.56864446]
[1747076052127,0.17979762,101490.0,101480.0,0.01185396]
[1747076052356,0.11044671,101490.0,101480.0,0.20893712]
[1747076052583,0.09074073,101490.0,101480.0,0.23849802]
[1747076052884,0.09074073,101490.0,101480.0,1.19266383]
[1747076052885,0.02563582,101490.0,101480.0,1.19266383]
[1747076053365,0.29765767,101490.0,101480.0,0.54893712]
[1747076053603,0.64140565,101490.0,101480.0,0.55879117]
[1747076053855,0.64140565,101490.0,101480.0,0.53908316]
[1747076054083,0.72740696,101490.0,101480.0,0.342]
[1747076054336,0.72740696,101490.0,101480.0,0.002]
[1747076054799,0.72740696,101490.0,101480.0,0.001]
[1747076054800,0.82740696,101490.0,101480.0,0.001]
[1747076055038,0.24468316,101480.0,101470.0,0.56666472]
[1747076055279,0.25453712,101480.0,101470.0,0.56666472]
[1747076055490,0.25453712,101480.0,101470.0,0.34]
[1747076055491,0.35039142,101480.0,101470.0,0.34]
[1747076055713,0.35934191,101480.0,101470.0,0.34]
[1747076055925,0.35934191,101480.0,101470.0,0.54695771]
[1747076056845,0.07625812,101480.0,101470.0,0.66374134]
[1747076057050,0.40731049,101480.0,101470.0,1.13849427]
[1747076057273,0.00895049,101480.0,101470.0,1.23434857]
[1747076057487,0.06830704,101480.0,101470.0,0.57652173]
[1747076057705,0.39876,101480.0,101470.0,0.57652173]
[1747076057952,0.40861338,101480.0,101470.0,0.57652173]
[1747076058182,0.40861338,101480.0,101470.0,0.56666729]
[1747076058183,0.63525774,101480.0,101470.0,0.56666729]
[1747076058399,0.06620908,101470.0,101460.0,0.56668894]
[1747076058615,0.0465,101470.0,101460.0,0.60767413]
[1747076058829,0.35116,101480.0,101470.0,0.2266668]
[1747076059050,0.36999997,101480.0,101470.0,0.2266668]
[1747076059286,0.36014659,101480.0,101470.0,0.2266668]
[1747076060615,0.36014659,101480.0,101470.0,1.06959574]
[1747076060853,0.00898659,101480.0,101470.0,2.00418373]
[1747076061075,0.00898659,101480.0,101470.0,1.66717173]
[1747076061299,0.00898659,101480.0,101470.0,1.16424279]
[1747076061525,0.00898659,101480.0,101470.0,1.66717173]
[1747076061753,0.00898659,101480.0,101470.0,1.66817173]
[1747076061982,0.00898659,101480.0,101470.0,1.66917173]
[1747076062418,0.01668533,101490.0,101480.0,0.56664446]
[1747076062634,0.01654758,101490.0,101480.0,0.71736787]
[1747076062863,0.06534758,101490.0,101480.0,0.307396]
[1747076063081,0.27544504,101480.0,101470.0,0.002]
[1747076063299,0.62076504,101480.0,101470.0,0.20895762]
[1747076063511,0.62076504,101480.0,101470.0,0.20795771]
[1747076063733,0.25577601,101470.0,101460.0,0.19712201]
[1747076063965,0.0488,101470.0,101460.0,0.56668914]
[1747076064199,0.05865425,101470.0,101460.0,0.56668914]
[1747076064470,0.01970879,101470.0,101460.0,0.56668914]
[1747076064697,0.01970869,101470.0,101460.0,0.56668914]
[1747076065147,0.05286304,101470.0,101460.0,0.56768914]
[1747076065366,0.08731758,101470.0,101460.0,0.56768914]
[1747076065596,0.07746304,101470.0,101460.0,0.56768914]
[1747076065828,0.0676086,101470.0,101460.0,0.56768914]
[1747076066051,0.08731778,101470.0,101460.0,0.54797801]
[1747076066260,0.27703081,101470.0,101460.0,0.55783391]
[1747076066484,0.06760899,101470.0,101460.0,0.56768982]
[1747076066715,0.07746382,101470.0,101460.0,0.57754524]
[1747076066933,0.28442134,101470.0,101460.0,0.57754543]
[1747076067209,0.29349203,101470.0,101460.0,0.57754543]
[1747076067428,0.29349271,101470.0,101460.0,0.56768982]
[1747076067653,0.08653451,101470.0,101460.0,0.61883358]
[1747076067874,0.2836371,101470.0,101460.0,0.58740075]
[1747076068105,0.2836371,101470.0,101460.0,0.57754533]
[1747076068332,0.05337968,101470.0,101460.0,0.58740075]
[1747076068595,0.2603371,101470.0,101460.0,0.57754543]
[1747076068834,0.29419203,101470.0,101460.0,0.57754543]
[1747076069059,0.28433768,101470.0,101460.0,0.56769001]
[1747076069268,0.41705968,101470.0,101460.0,0.58740114]
[1747076069700,0.42691442,101470.0,101460.0,0.58740114]
[1747076069919,0.42691451,101470.0,101460.0,0.58740114]
[1747076070132,0.40720504,101470.0,101460.0,0.58740114]
[1747076070563,0.36845968,101470.0,101460.0,0.66685361]
[1747076071036,0.36845968,101470.0,101460.0,0.57754572]
[1747076071037,0.56286227,101470.0,101460.0,0.57754572]
[1747076071260,0.38546886,101470.0,101460.0,0.58740065]
[1747076071476,0.37561403,101470.0,101460.0,0.58740065]
[1747076071702,0.38546877,101470.0,101460.0,0.58740065]
[1747076072211,0.58257242,101470.0,101460.0,0.53812201]
[1747076072433,0.66857101,101470.0,101460.0,0.55783391]
[1747076072659,0.68828097,101470.0,101460.0,0.57754513]
[1747076072872,0.68828165,101470.0,101460.0,0.56768982]
[1747076073086,0.67842653,101470.0,101460.0,0.57754524]
[1747076073301,0.62919821,101480.0,101470.0,0.566667]
[1747076073533,1.16047442,101480.0,101470.0,0.57652154]
[1747076073781,1.16063442,101480.0,101470.0,0.56666719]
[1747076073988,1.14092738,101480.0,101470.0,0.54695771]
[1747076074225,1.13107352,101480.0,101470.0,0.34]
[1747076074687,1.13107352,101480.0,101430.0,0.19718032]
[1747076074688,0.19716088,101440.0,101430.0,0.19718032]
[1747076074909,0.60019667,101440.0,101430.0,0.21689805]
[1747076075122,0.61005413,101440.0,101430.0,0.2366152]
[1747076075349,0.60019609,101440.0,101430.0,0.2366151]
[1747076075567,0.40303521,101440.0,101430.0,0.24647343]
[1747076076036,0.41289237,101440.0,101430.0,0.58696358]
[1747076076269,0.38332,101440.0,101430.0,0.66537818]
[1747076076483,0.00985629,101450.0,101440.0,0.56673383]
[1747076076706,0.67076,101450.0,101440.0,0.56673383]
[1747076076930,0.68061639,101450.0,101440.0,0.56673383]
[1747076077154,0.67076,101450.0,101440.0,0.56673383]
[1747076077370,0.67076,101450.0,101440.0,0.66258813]
[1747076077825,0.67076,101450.0,101440.0,0.67227128]
[1747076078263,0.42588,101460.0,101450.0,0.56671148]
[1747076078497,0.1558543,101470.0,101450.0,0.56671148]
[1747076078498,0.67076,101470.0,101460.0,0.57654474]
[1747076078722,0.88757158,101470.0,101460.0,0.55683381]
[1747076078939,0.93028144,101470.0,101460.0,0.55683381]
[1747076079147,0.95488144,101470.0,101460.0,0.56668942]
[1747076079361,0.94502641,101470.0,101460.0,0.57654484]
[1747076079841,0.72821435,101470.0,101460.0,0.58640035]
[1747076080033,0.94502651,101470.0,101460.0,0.55683381]
[1747076080275,0.72821435,101470.0,101460.0,0.56668914]
[1747076080492,0.73806899,101470.0,101460.0,0.56668914]
[1747076080710,0.59115694,101470.0,101460.0,0.54697801]
[1747076080918,0.95488163,101470.0,101460.0,0.55683391]
[1747076081149,0.73806899,101470.0,101460.0,0.56668971]
[1747076081372,0.73806899,101470.0,101460.0,0.58640084]
[1747076081600,0.47348,101480.0,101470.0,0.55681236]
[1747076081825,1.24424,101480.0,101470.0,0.5666668]
[1747076082043,1.47772974,101480.0,101470.0,0.5666668]
[1747076082257,0.94648639,101480.0,101470.0,0.5666669]
[1747076082474,0.00684557,101480.0,101470.0,1.04883512]
[1747076082703,0.62628218,101490.0,101480.0,0.19708316]
[1747076082926,0.22664417,101480.0,101470.0,0.54695762]
[1747076083146,0.22666621,101470.0,101460.0,0.54697791]
[1747076083366,0.22666621,101470.0,101460.0,0.55683352]
[1747076083367,0.28442114,101470.0,101460.0,0.55683352]
[1747076083572,0.28442114,101470.0,101460.0,0.55683391]
[1747076083573,0.26471196,101470.0,101460.0,0.55683391]
[1747076083806,0.28369291,101470.0,101460.0,0.55683391]
[1747076084015,0.28369291,101470.0,101460.0,0.56668982]
[1747076084264,0.28369291,101470.0,101460.0,0.55683411]
[1747076084482,0.01898017,101470.0,101460.0,0.58840104]
[1747076084709,0.00912592,101470.0,101460.0,0.58940104]
[1747076084936,0.00912592,101470.0,101460.0,1.15684355]
[1747076085175,0.00912592,101470.0,101460.0,1.47431785]
[1747076085403,0.01654758,101490.0,101480.0,0.56664446]
[1747076085623,0.11654758,101490.0,101480.0,0.56664446]
[1747076085839,0.11654758,101490.0,101480.0,1.03895824]
[1747076086048,0.01654758,101490.0,101480.0,1.53315284]
[1747076086481,0.02668471,101490.0,101480.0,1.62900714]
[1747076086925,0.02868471,101490.0,101480.0,0.74091336]
[1747076087145,0.31325945,101490.0,101480.0,0.54693712]
[1747076087360,0.30140704,101490.0,101480.0,0.55879117]
[1747076087635,0.30140704,101490.0,101480.0,0.57949841]
[1747076088115,0.29155395,101490.0,101480.0,0.57949841]
[1747076088334,0.03653702,101490.0,101480.0,0.66799566]
[1747076088562,0.05624203,101490.0,101480.0,0.66799566]
[1747076088783,0.02668471,101490.0,101480.0,1.14030944]
[1747076089139,0.02668471,101490.0,101480.0,0.66799566]
[1747076089348,0.03653702,101490.0,101480.0,0.66799566]
[1747076090154,0.04638943,101490.0,101480.0,0.66799566]
[1747076090543,0.03653702,101490.0,101480.0,0.66799566]
[1747076090970,0.02668471,101490.0,101480.0,0.66799566]
[1747076091179,0.04638952,101490.0,101480.0,0.66799566]
[1747076091439,0.28220096,101490.0,101480.0,0.343]
[1747076091643,0.38790883,101490.0,101480.0,0.343]
[1747076091828,0.48790883,101490.0,101480.0,0.343]
[1747076092061,0.83172124,101490.0,101480.0,0.343]
[1747076092260,0.84157433,101490.0,101480.0,0.56964474]
[1747076092385,0.84157433,101490.0,101480.0,0.54993731]
[1747076092591,0.82086825,101490.0,101480.0,0.56664514]